Cogmind - Beta 13 @@@ ROGUE MODE // 2024.04.05 @ 16:24:28 Player: youngster Result: Destroyed by C-17 Slicer with Blade Saw Performance ------------- Evolutions (3) 1500 Regions Visited (8) 1600 Robots Destroyed (70) 350 Value Destroyed (1541) 1541 Prototype IDs (3) 60 Alien Tech Used (0) 0 Bonus (416) 416 TOTAL SCORE: 5467 Bonus ------- Entered DSFs 500 Friendly Fire -84 Cogmind --------- Core Integrity 0/700 Matter 114/300 Energy 99/100 System Corruption 9% Temperature Cool (0) Movement Core (50) Location -7/DSF Parts ------- > --- POWER (2) -------- (None) > --- PROPULSION (3) --- (None) > --- UTILITY (5) ------ (None) > --- WEAPON (3) ------- (None) > --- INVENTORY (5) ---- Huge Storage Unit Improved Powered Armor Enhanced Gauss Cannon Subdweller Shrapnel Launcher Peak State ------------ > --- POWER ------------ Backup Power VII Backup Power VII > --- PROPULSION ------- Backup Propulsion VII Backup Propulsion VII > --- UTILITY ---------- Advanced Targeting Computer Backup Plating VII > --- WEAPON ----------- Backup Laser VII Backup Laser VII > --- INVENTORY -------- Deuterium Engine Hardened Heavy Armor Plating Enhanced Autogun Subdweller Shrapnel Launcher [Rating: 53] Favorites ----------- Power Improved Deuterium Engine Engine Improved Deuterium Engine Power Core Backup Power VII Propulsion Light Treads Treads Light Treads Wheel Compact Wheel Hover Unit Backup Propulsion VII Utility Large Storage Unit Device Seismic Detector Storage Large Storage Unit Processor Advanced Targeting Computer Protection Hardened Medium Armor Plating Weapon Battle Rifle Energy Gun Backup Laser VII Energy Cannon EM Pulse Cannon Ballistic Gun Battle Rifle Ballistic Cannon Battle Cannon Launcher Grenade Launcher Build | -11 -10 -10 -10 -8 -7 -7 -7 -7 ------- Run | Yrd Mat Min Sub Mat Fac Was Fac DSF Slots Evolved 6 | . . . . 4 2 . . . Power 1 | . . . . . 1 . . . Propulsion 1 | . . . . 1 . . . . Utility 3 | . . . . 2 1 . . . Weapon 1 | . . . . 1 . . . . Parts Attached 97 | 7 11 4 19 44 12 . . . Power 5 | 1 1 . 1 1 1 . . . Engine 5 | 1 1 . 1 1 1 . . . Core . | . . . . . . . . . Reactor . | . . . . . . . . . Propulsion 20 | 2 1 . 3 13 1 . . . Treads 19 | 2 1 . 3 12 1 . . . Leg . | . . . . . . . . . Wheel 1 | . . . . 1 . . . . Hover . | . . . . . . . . . Flight . | . . . . . . . . . Utility 29 | 2 4 . 4 15 4 . . . Device 15 | 1 3 . 4 6 1 . . . Storage 2 | 1 1 . . . . . . . Processor 2 | . . . . 2 . . . . Hackware . | . . . . . . . . . Protection 10 | . . . . 7 3 . . . Artifact . | . . . . . . . . . Weapon 43 | 2 5 4 11 15 6 . . . Energy Gun 1 | . . . 1 . . . . . Energy Cannon 3 | . . . . . 3 . . . Ballistic Gun 26 | 2 3 3 6 10 2 . . . Ballistic Cannon 1 | . . . 1 . . . . . Launcher 12 | . 2 1 3 5 1 . . . Special Weapon . | . . . . . . . . . Impact Weapon . | . . . . . . . . . Slashing Weapon . | . . . . . . . . . Piercing Weapon . | . . . . . . . . . Special Melee Weapon . | . . . . . . . . . Unidentified Prototypes 1 | . . . . 1 . . . . Parts Lost 22 | . 1 . 2 2 17 . . . Power 3 | . 1 . . . 2 . . . Propulsion 6 | . . . . . 6 . . . Utility 4 | . . . . . 4 . . . Weapon 9 | . . . 2 2 5 . . . Highest Loss Streak 14 | . 1 . 2 1 14 . . . To Critical Strikes . | . . . . . . . . . Average Slot Usage (%) 94 | . 98 100 99 99 50 . . . Engine 10 | . 12 14 14 9 2 . . . Treads 24 | . 28 28 28 25 6 . . . Device 11 | . 14 14 14 10 2 . . . Storage 10 | . 14 14 14 9 2 . . . Processor 5 | . . . . 8 6 . . . Protection 4 | . . . . 7 8 . . . Ballistic Gun 23 | . 28 27 21 24 4 . . . Ballistic Cannon 2 | . . . 5 2 . . . . Naked Turns 152 | . . . . . 8 87 33 24 Heaviest Build 67 | 14 29 29 35 55 67 . . . Greatest Support 66 | 40 40 40 40 66 62 3 3 3 Greatest Overweight (x) 3 | . . . . 2 3 . . . Average Overweight (x) . | . . . . . . . . . Largest Inventory Capacity 15 | 8 15 15 15 15 15 5 5 5 Average Capacity 14 | 7 14 15 15 15 8 5 5 5 Most Carried 15 | 5 15 15 15 15 14 5 5 4 Average Carried 13 | 2 11 14 14 14 7 4 4 4 Final Capacity 15 | 8 15 15 15 15 5 5 5 5 Final Carried 15 | 5 15 15 15 15 5 5 4 4 Class Distribution -------------------- 48% | Mutant 33% | Scavenger-Gunner 14% | Gunner Dominant Class ---------------- Mutant | -10/Materials Mutant | -10/Mines Mutant | -10/Subcaves Scavenger-Gunner | -8/Materials Mutant | -7/Factory Mutant | -7/Waste Mutant | -7/Factory Mutant | -7/DSF Resources | -11 -10 -10 -10 -8 -7 -7 -7 -7 ----------- Run | Yrd Mat Min Sub Mat Fac Was Fac DSF Matter Collected 2394 | 269 371 164 424 1099 67 . . . Remotely . | . . . . . . . . . Salvage Created 1996 | 92 405 78 296 1125 . . . . Parts 156 | 11 32 7 28 78 . . . . Haulers Intercepted 6 | . . . . 6 . . . . Recyclers Shooed 1 | . 1 . . . . . . . Parts Field Recycled . | . . . . . . . . . Retrieved Matter . | . . . . . . . . . Parts Self-Destructed 16 | . . . 16 . . . . . Prevented . | . . . . . . . . . Kills | -11 -10 -10 -10 -8 -7 -7 -7 -7 ------- Run | Yrd Mat Min Sub Mat Fac Was Fac DSF Combat Hostiles Destroyed 47 | . 14 5 12 16 . . . . Guns 29 | . 12 1 7 9 . . . . Cannons 2 | . . . 1 1 . . . . AOE 16 | . 2 4 4 6 . . . . Classes Destroyed 13 | 2 4 . 2 5 . . . . Worker 7 | . 3 . . 4 . . . . Builder 1 | . . . . 1 . . . . Tunneler 3 | 2 . . . 1 . . . . Hauler 6 | . . . . 6 . . . . Recycler 3 | 1 . . . 2 . . . . Watcher 3 | . 2 . . 1 . . . . Swarmer 19 | . 9 3 4 3 . . . . Grunt 13 | . 5 2 2 4 . . . . Sentry 7 | . . . . 7 . . . . Hunter 1 | . . . . 1 . . . . Heavy 1 | . . . . 1 . . . . Artisan 1 | . . . 1 . . . . . Subdweller 6 | . . . 6 . . . . . Best Kill Streak 4 | 1 4 3 4 4 . . . . Combat Bots Only 4 | . 4 3 4 3 . . . . Max Kills in Single Turn 3 | 1 2 3 1 2 . . . . Gunslinging . | . . . . . . . . . Exploded 3 | . 2 3 1 2 . . . . Melee . | . . . . . . . . . Uniques/NPCs Destroyed . | . . . . . . . . . Combat | -11 -10 -10 -10 -8 -7 -7 -7 -7 -------- Run | Yrd Mat Min Sub Mat Fac Was Fac DSF Hostile Shots Fired 429 | . 75 6 66 62 215 . . 5 Missed 104 | . 17 1 25 23 37 . . 1 Damage Taken 5855 | . 552 50 798 703 3668 . . 84 Core 1010 | . 71 . 177 59 619 . . 84 Absorbed by Shields 133 | . . . . . 133 . . . Ignored by Resistances 63 | . . . . 63 . . . . Regen/Repaired (Parts) 339 | . . . . 339 . . . . Core Remaining (%) 63 | 100 . . . 89 . . . . Volleys Fired 195 | 15 45 3 47 47 38 . . . Largest 3 | 2 2 2 2 3 3 . . . Hottest 113 | 40 40 40 100 89 113 . . . Shots Fired 419 | 30 89 4 81 130 85 . . . Gun 364 | 30 88 2 58 112 74 . . . Cannon 39 | . . . 18 11 10 . . . Launcher 16 | . 1 2 5 7 1 . . . Special . | . . . . . . . . . Kinetic 379 | 30 88 2 68 128 63 . . . Thermal 20 | . . . 8 . 12 . . . Explosive 10 | . 1 2 5 2 . . . . Electromagnetic 10 | . . . . . 10 . . . Robot Hit Streak 28 | 3 13 4 9 28 21 . . . Robot Miss Streak 6 | 2 5 . 6 2 5 . . . Penetration Max . | . . . . . . . . . Secondary Targets 2 | . 1 . 1 . . . . . Max Gunslinging Chain 1 | . 1 . 1 . . . . . Shots Hit Robots 281 | 18 54 2 52 90 65 . . . Core Hits 134 | 5 26 6 29 53 15 . . . Critical Kills 1 | . . . . 1 . . . . Critical Parts Destroyed 1 | . . . . 1 . . . . Critical Strikes 3 | . . . 1 2 . . . . Destroy 2 | . . . . 2 . . . . Blast 1 | . . . 1 . . . . . Melee Attacks . | . . . . . . . . . Impact . | . . . . . . . . . Slashing . | . . . . . . . . . Piercing . | . . . . . . . . . Sneak Attacks . | . . . . . . . . . Combat Hostiles . | . . . . . . . . . Follow-up Attacks . | . . . . . . . . . Damage Inflicted 4773 | 169 718 266 998 1996 626 . . . Guns 3095 | 169 591 23 629 1241 442 . . . Cannons 409 | . . . 135 142 132 . . . Explosions 991 | . 90 220 222 459 . . . . Melee . | . . . . . . . . . Ramming 278 | . 37 23 12 154 52 . . . Kinetic 3636 | 169 591 23 638 1812 403 . . . Thermal 251 | . . 86 126 . 39 . . . Explosive 476 | . 90 134 222 30 . . . . Electromagnetic 132 | . . . . . 132 . . . Impact . | . . . . . . . . . Slashing . | . . . . . . . . . Piercing . | . . . . . . . . . Highest Corruption 9 | . . . . 2 . 9 9 9 Average Corruption 2 | . . . . 2 . 9 9 9 Corruption Purged . | . . . . . . . . . Corruption Blocked . | . . . . . . . . . Effects 64 | . . . . 59 . 4 1 . Message Errors 13 | . . . . 11 . 1 1 . Matter Fused 22 | . . . . 19 . 3 . . Heat Flow Errors 5 | . . . . 5 . . . . Energy Discharges 8 | . . . . 8 . . . . Parts Rejected 1 | . . . . 1 . . . . Data Loss (minor) 5 | . . . . 5 . . . . Data Loss (major) 2 | . . . . 2 . . . . Misfires 4 | . . . . 4 . . . . Alerts 3 | . . . . 3 . . . . Weapon Failures 1 | . . . . 1 . . . . Overload Shots . | . . . . . . . . . Overflow Damage 9 | . . . . 9 . . . . Projectiles . | . . . . . . . . . Explosions 9 | . . . . 9 . . . . Melee . | . . . . . . . . . Knockbacks 3 | . . . 1 2 . . . . Impact 1 | . . . . 1 . . . . Kinetic 2 | . . . 1 1 . . . . Secondary . | . . . . . . . . . Self-Inflicted Damage 107 | . 39 10 43 8 7 . . . Shots 6 | . 1 2 2 1 . . . . Rammed 51 | . 7 5 2 19 18 . . . Targets Rammed 54 | . 7 5 2 22 18 . . . Kicked . | . . . . . . . . . Crushed 3 | . . . . 3 . . . . Highest Temperature 415 | . 18 . 48 254 415 . . . Average Temperature 93 | . 9 . 23 65 160 . . . Received Heat Transfer 1899 | . 108 6 207 162 1416 . . . Effects 6 | . . . . 1 5 . . . Shutdowns 1 | . . . . . 1 . . . Energy Bleed 1 | . . . . . 1 . . . Interference 4 | . . . . 1 3 . . . Siege Activations . | . . . . . . . . . Robots Corrupted . | . . . . . . . . . Combat Hostiles . | . . . . . . . . . Parts Fried . | . . . . . . . . . Impact Corruptions . | . . . . . . . . . Robots Melted . | . . . . . . . . . Combat Hostiles . | . . . . . . . . . Parts Melted 1 | . . . 1 . . . . . Heat Transferred 396 | . . 100 222 . 74 . . . Parts Sabotaged . | . . . . . . . . . Parts Stolen . | . . . . . . . . . Parts Stripped . | . . . . . . . . . Power Chain Reactions . | . . . . . . . . . Alert | -11 -10 -10 -10 -8 -7 -7 -7 -7 ------- Run | Yrd Mat Min Sub Mat Fac Was Fac DSF Peak Influence 256 | 15 256 194 . 253 126 44 30 21 Initial 44 | . 9 40 . 27 44 44 30 21 Average 99 | 6 124 60 . 114 45 44 30 21 Maximum Alert Level 1 | . 1 . . 1 . . . . Low Security (%) 96 | 100 91 100 . 95 100 100 100 100 Level 1 3 | . 8 . . 4 . . . . Level 2 . | . . . . . . . . . Level 3 . | . . . . . . . . . Level 4 . | . . . . . . . . . Level 5 . | . . . . . . . . . High Security . | . . . . . . . . . Max Security . | . . . . . . . . . Squads Dispatched 10 | . 3 . . 2 3 . 1 1 Investigation 6 | . 3 . . 1 1 . 1 . Extermination . | . . . . . . . . . Reinforcement 4 | . . . . 1 2 . . 1 Assault . | . . . . . . . . . Garrison . | . . . . . . . . . Intercept . | . . . . . . . . . Searches Triggered . | . . . . . . . . . Construction Impeded . | . . . . . . . . . Haulers Reinforced . | . . . . . . . . . Active Scanning Responses . | . . . . . . . . . Cargo Convoy Interrupts . | . . . . . . . . . Stealth | -11 -10 -10 -10 -8 -7 -7 -7 -7 --------- Run | Yrd Mat Min Sub Mat Fac Was Fac DSF Distress Signals 4 | . 1 . . 2 1 . . . Communications Jammed . | . . . . . . . . . Distress Signals . | . . . . . . . . . Times Spotted 102 | . 21 4 30 17 21 6 . 3 Peak Tracking Total 9 | . 4 3 5 3 9 6 . 3 Tactical Retreats 7 | . 1 . 2 . 3 1 . . Traps | -11 -10 -10 -10 -8 -7 -7 -7 -7 ------- Run | Yrd Mat Min Sub Mat Fac Was Fac DSF Traps Triggered 6 | . 2 . . 2 2 . . . Indirectly . | . . . . . . . . . Trap Hack Attempts . | . . . . . . . . . Triggered . | . . . . . . . . . Disarmed . | . . . . . . . . . Reprogrammed . | . . . . . . . . . Reused . | . . . . . . . . . Traps Extracted . | . . . . . . . . . Installed . | . . . . . . . . . Triggered . | . . . . . . . . . Machines | -11 -10 -10 -10 -8 -7 -7 -7 -7 ---------- Run | Yrd Mat Min Sub Mat Fac Was Fac DSF Machines Disabled 6 | . . 1 2 . 3 . . . Max in Single Turn 3 | . . 1 2 . 3 . . . Machines Repaired . | . . . . . . . . . Machines Dismantled . | . . . . . . . . . Machines Sabotaged . | . . . . . . . . . Overloaded Fab Kills . | . . . . . . . . . Hacking | -11 -10 -10 -10 -8 -7 -7 -7 -7 --------- Run | Yrd Mat Min Sub Mat Fac Was Fac DSF Machines Accessed 27 | . 7 . . 15 3 . 2 . Terminals 18 | . 6 . . 9 1 . 2 . Fabricators 1 | . . . . . 1 . . . Repair Stations 3 | . . . . 2 1 . . . Recycling Units 2 | . 1 . . 1 . . . . Scanalyzers 2 | . . . . 2 . . . . Garrison Access 1 | . . . . 1 . . . . Total Hacks 69 | . 15 . . 42 7 . 5 . Successful 44 | . 9 . . 30 4 . 1 . Failed 23 | . 5 . . 11 3 . 4 . Catastrophic 4 | . . . . 2 1 . 1 . Database Lockouts 2 | . 1 . . 1 . . . . Manual 27 | . 12 . . 15 . . . . Terminals 44 | . 14 . . 21 4 . 5 . Fabricators 2 | . . . . . 2 . . . Repair Stations 8 | . . . . 7 1 . . . Recycling Units 3 | . 1 . . 2 . . . . Scanalyzers 11 | . . . . 11 . . . . Garrison Access 1 | . . . . 1 . . . . Terminal Hacks 14 | . 5 . . 7 1 . 1 . Part Schematic 2 | . . . . 2 . . . . Robot Schematic 1 | . 1 . . . . . . . Prototype ID Bank 1 | . 1 . . . . . . . Open DSF 1 | . . . . . . . 1 . Branch Access Points 1 | . 1 . . . . . . . Locate Traps 5 | . 1 . . 3 1 . . . Hauler Manifests 2 | . 1 . . 1 . . . . Zone Layout 1 | . . . . 1 . . . . Fabricator Hacks 2 | . . . . . 2 . . . Network Status 2 | . . . . . 2 . . . Repair Station Hacks 7 | . . . . 6 1 . . . Scan Component 3 | . . . . 3 . . . . Repair 3 | . . . . 3 . . . . Refit 1 | . . . . . 1 . . . Recycling Unit Hacks . | . . . . . . . . . Scanalyzer 11 | . . . . 11 . . . . Insert Component 5 | . . . . 5 . . . . Analyze 6 | . . . . 6 . . . . Garrison Access Hacks 1 | . . . . 1 . . . . Unlock Access 1 | . . . . 1 . . . . Unauthorized Hacks 9 | . 4 . . 5 . . . . Terminals 7 | . 3 . . 4 . . . . Assimilate 2 | . 1 . . 1 . . . . Botnet 3 | . 1 . . 2 . . . . Operators 2 | . 1 . . 1 . . . . Fabricators . | . . . . . . . . . Repair Stations . | . . . . . . . . . Recycling Units 2 | . 1 . . 1 . . . . Mask 1 | . . . . 1 . . . . Tunnel 1 | . 1 . . . . . . . Scanalyzers . | . . . . . . . . . Garrison Access . | . . . . . . . . . Data Cores Recovered . | . . . . . . . . . Used . | . . . . . . . . . Hacking Detections 18 | . 3 . . 11 3 . 1 . Full Trace Events 2 | . . . . . 1 . 1 . Feedback Events . | . . . . . . . . . Feedback Blocked . | . . . . . . . . . Robot Schematics Acquired 1 | . 1 . . . . . . . Robots Built . | . . . . . . . . . Authchips . | . . . . . . . . . Time . | . . . . . . . . . Total Robot Build Rating . | . . . . . . . . . Part Schematics Acquired 7 | . . . . 7 . . . . Parts Built . | . . . . . . . . . Authchips . | . . . . . . . . . Time . | . . . . . . . . . Total Part Build Rating . | . . . . . . . . . Parts Repaired 3 | . . . . 3 . . . . Time 114 | . . . . 114 . . . . Parts Recycled . | . . . . . . . . . Recycled Matter . | . . . . . . . . . Retrieved Matter . | . . . . . . . . . Retrieved Components . | . . . . . . . . . Parts Scanalyzed 5 | . . . . 5 . . . . Part Schematics Acquired 5 | . . . . 5 . . . . Parts Damaged . | . . . . . . . . . Bothacking | -11 -10 -10 -10 -8 -7 -7 -7 -7 ------------ Run | Yrd Mat Min Sub Mat Fac Was Fac DSF Used RIF Installer . | . . . . . . . . . Robots Hacked . | . . . . . . . . . Non-combat . | . . . . . . . . . Combat . | . . . . . . . . . Robot Hacks Applied . | . . . . . . . . . Relay Couplers Released . | . . . . . . . . . Fabnet Peak Effective % . | . . . . . . . . . Robots Rewired . | . . . . . . . . . Allies Hacked . | . . . . . . . . . Hacks Repelled . | . . . . . . . . . Allies | -11 -10 -10 -10 -8 -7 -7 -7 -7 -------- Run | Yrd Mat Min Sub Mat Fac Was Fac DSF Total Allies 4 | . 1 2 . 1 . . . . Largest Group 2 | . 1 2 2 1 1 . . . Highest-Rated Group 45 | . 10 41 45 10 10 . . . Highest-Rated Ally 31 | . 10 31 31 10 10 . . . Total Orders 10 | . 3 . . 7 . . . . STAY 7 | . 2 . . 5 . . . . FOLLOW 3 | . 1 . . 2 . . . . Ally Attacks 21 | . . . 21 . . . . . Total Damage 237 | . . . 237 . . . . . Kills 2 | . . . 2 . . . . . Allies Corrupted . | . . . . . . . . . Allies Melted . | . . . . . . . . . Intel | -11 -10 -10 -10 -8 -7 -7 -7 -7 ------- Run | Yrd Mat Min Sub Mat Fac Was Fac DSF Robot Analysis Total . | . . . . . . . . . Derelict Logs Recovered 2 | . . 1 1 . . . . . Drone Launches . | . . . . . . . . . Drone Recoveries . | . . . . . . . . . Exploration | -11 -10 -10 -10 -8 -7 -7 -7 -7 ------------- Run | Yrd Mat Min Sub Mat Fac Was Fac DSF Turns Passed 7686 | 186 835 819 1308 3995 399 87 33 24 Spaces Moved 4493 | 82 408 492 694 2253 295 160 62 47 Core 341 | 1 . . . . 71 160 62 47 Treads 3617 | 81 408 492 694 1937 5 . . . Legs . | . . . . . . . . . Wheels 316 | . . . . 316 . . . . Hover 219 | . . . . . 219 . . . Flight . | . . . . . . . . . Fastest Speed 50 | 50 160 160 160 130 50 50 50 50 Average Speed 145 | 158 160 160 160 154 76 50 50 50 Slowest Speed 250 | 160 160 160 160 225 250 50 50 50 Overloaded Moves . | . . . . . . . . . Propulsion Burnouts . | . . . . . . . . . Robots Hopped . | . . . . . . . . . Cave-ins Triggered . | . . . . . . . . . Exploration Rate (%) 50 | 8 57 100 46 97 15 95 3 32 Regions Visited 8 Branch Regions 2 Pre-discovered Areas 2 | . 1 . 1 . . . . . Known Exits Taken 2 | . 1 . . . . . 1 . Unknown Exits Taken 4 | 1 . 1 1 1 . . . . Scrap Searched 8 | . . 3 5 . . . . . Spaces Dug 57 | . 8 7 5 37 . . . . Terrain Destroyed 120 | . 8 19 22 63 8 . . . Melee . | . . . . . . . . . Projectile 2 | . . . . 2 . . . . AOE 118 | . 8 19 22 61 8 . . . Terrain Rammed . | . . . . . . . . . Walls Destroyed . | . . . . . . . . . Machines Disabled . | . . . . . . . . . Actions | -11 -10 -10 -10 -8 -7 -7 -7 -7 --------- Run | Yrd Mat Min Sub Mat Fac Was Fac DSF Total 5288 | 108 502 517 813 2669 402 167 63 47 Wait 353 | . 20 11 40 245 33 4 . . Move 4486 | 81 407 491 693 2252 295 159 61 47 Hop . | . . . . . . . . . Pick Up 49 | 5 10 1 4 25 1 2 1 . Fast Attach 16 | 7 . . 1 8 . . . . Attach 16 | . 1 . 3 5 7 . . . Detach 3 | . . . . 2 1 . . . Swap 65 | . 10 4 15 31 5 . . . Drop 51 | . 2 2 8 32 4 2 1 . Fire 195 | 15 45 3 47 47 38 . . . Melee . | . . . . . . . . . Ram 5 | . . . . . 5 . . . Kick . | . . . . . . . . . Crush 49 | . 7 5 2 22 13 . . . Escape Stasis . | . . . . . . . . . Rewire . | . . . . . . . . . Trap . | . . . . . . . . . Miscellaneous . | . . . . . . . . . Route ------- -11/Scrapyard -10/Materials (discovered 5 exits: [*Mat x2] / *Min x2 / [Sub]) -10/Mines (discovered 4 exits: [*Mat x2] / [*Exi] / [*Sub]) -10/Subcaves (discovered 3 exits: *Mat x2 / [*Rec]) -8/Materials (discovered 4 exits: *Fac x3 / Gar) -7/Factory -7/Waste -7/Factory -7/DSF History --------- Turn | Location | Event 28 | -11/Scrapyard | Discovered new exit (range 16) 187 | -11/Scrapyard | Entered Materials 259 | -10/Materials | Central database locked down 303 | -10/Materials | Identified exit to Mines 305 | -10/Materials | Build established: Mutant 403 | -10/Materials | Discovered new exit (range 16) 572 | -10/Materials | Discovered new exit (range 12) 878 | -10/Materials | Discovered new exit (range 10) 1022 | -10/Materials | Entered Mines 1030 | -10/Mines | Discovered new exit (range 13) 1266 | -10/Mines | Deemed a non-threat by the Exiles lab entrance 1267 | -10/Mines | Discovered new exit (range 5) 1435 | -10/Mines | Discovered new exit (range 4) 1601 | -10/Mines | A weapon hastily lodged in a ceiling crevice suddenly fell to the ground 1616 | -10/Mines | Discovered new exit (range 12) 1841 | -10/Mines | Entered Subcaves 1841 | -10/Subcaves | Accompanied by 2 allies 1846 | -10/Subcaves | Led the pair of lost Derelicts to an unsafe place 2055 | -10/Subcaves | Learned location of Zion (-7) 2210 | -10/Subcaves | Shifting Twisted Machinery released Battle Rifle 2215 | -10/Subcaves | Discovered new exit (range 10) 2346 | -10/Subcaves | Ambushed by angry Subdweller bent on revenge 2422 | -10/Subcaves | Core integrity fell below 50% 2430 | -10/Subcaves | A Subdweller sparked back to life 2430 | -10/Subcaves | A Subdweller sparked back to life 2501 | -10/Subcaves | Discovered new exit (range 15) 2588 | -10/Subcaves | Found Prototype Leg 2907 | -10/Subcaves | Disturbed a concealed Subdweller 3110 | -10/Subcaves | Discovered new exit (range 5) 3124 | -10/Subcaves | Core integrity fell below 20% 3149 | -10/Subcaves | Entered Materials 3149 | -8/Materials | Evolved 4 slots: Propulsion x1, Utility x2, Weapon x1 3415 | -8/Materials | Identified exit to Garrison 3556 | -8/Materials | Met 7R-MNS 3592 | -8/Materials | Discovered new exit (range 16) 3623 | -8/Materials | Build established: Scavenger-Gunner 3943 | -8/Materials | Central database locked down 4107 | -8/Materials | Build established: Gunner 4253 | -8/Materials | Discovered new exit (range 13) 4840 | -8/Materials | Discovered new exit (range 6) 5446 | -8/Materials | Build established: Scavenger-Gunner 6468 | -8/Materials | Repaired Hrd. Medium Armor Plating 6687 | -8/Materials | Repaired Arm. Treads 6726 | -8/Materials | Repaired Arm. Treads 7144 | -8/Materials | Entered Factory 7144 | -7/Factory | Accompanied by 1 ally 7144 | -7/Factory | Evolved 2 slots: Power x1, Utility x1 7145 | -7/Factory | Caught up to 7R-MNS 7151 | -7/Factory | Attacked by 7R-MNS 7324 | -7/Factory | Lost 14 parts (2p4n4u4w) 7339 | -7/Factory | Core integrity fell below 50% 7522 | -7/Factory | Core integrity fell below 20% 7535 | -7/Factory | Released all parts (4) 7543 | -7/Factory | Sucked down chute 7543 | -7/Factory | Entered Waste 7547 | -7/Waste | Build established: Mutant 7548 | -7/Waste | Spotted C-40 Crusher 7552 | -7/Waste | Spotted C-40 Crusher 7558 | -7/Waste | EMP discharged 7573 | -7/Waste | Spotted C-40 Crusher 7575 | -7/Waste | Spotted C-40 Crusher 7592 | -7/Waste | Spotted C-40 Crusher 7608 | -7/Waste | Found Imp. Powered Armor 7612 | -7/Waste | Spotted C-40 Crusher 7619 | -7/Waste | Discovered new exit (range 11) 7630 | -7/Waste | Entered Factory 7662 | -7/Factory | Identified exit to DSF 7663 | -7/Factory | Entered DSF 7686 | -7/DSF | Additional patrols routed to DSF 7687 | -7/DSF | Destroyed by C-17 Slicer with Blade Saw Last Messages --------------- GOAL=ESCAPE 07638_ Connecting with Terminal... 07638_ Current location identified: Factory 07638_ ALERT: Suspicious activity at Terminal F008. Dispatching Investigation squad. 07646_ WCODO09UKNNUQ9B1,X< EMZ3AD>JSRB/L9OVEVU 07649_ Dropped Hrd. Heavy Armor Plating. 07650_ Acquired Huge Storage Unit. 07657_ K-01 Serf collects debris. 07662_ Connecting with DSF Access... >>Open(DSF) DSF access unlocked. 07662_ EXIT=UNLOCKED: DSF LOCATION=DSF AMBIENT_HEAT=-10 GOAL=ESCAPE 07668_ ALERT: Suspicious intruders detected, dispatching Cutter reinforcements to area. 07686_ Hostiles detected in DSF, routing additional patrols. Map ----- +----------------------------------------------------+ | ???????????????????????????????????? | | ???????????????????????????????????? | | ???????????????????????????????????? | | ???????????????????????????????????? | | ???????????????????????????????????? | | ???????????????????????????????????? | | ???????????????????????????????????? | | ???????????????????????????????????? | | ???????????????????????????????????? | | ???????????????????????????????????? | | ???????????????????????????????????? | | ???????????????????????????????????? | | ???????????????????????????????????? | | ???????????????????##??######??????? | | ???????????????????? ?# #??????? | | ????????????????????? ## #??????? | | ????????????????????? ]]#??????? | | ??????????H??????????? ]]#??????? | | ??????????????????????? ]]#??????? | | ???????????????????????# [[#??????? | | ???????????????????????# [[???????? | | ?????????????????????### ##???????? | | ?????????????????????# &#???????? | | ?????????????????????# &#???????? | | ?????????????????????# &#???????? | | ??????###????????????### @##???????? | | ??????#!!????????????#&& c&#???????? | | ??????#!! ???????????#&& c&#???????? | | ???????!! ???########## ##???????? | | ????????# ??#&&&#&&### ###??????? | | ??????### ###&&&#&&## c ""###????? | | ??????# """""#???? | | ??????# ""##"#???? | | ??????#[[!!!==# #&&##"""""#??????? | | ??????#[[!!!==#########"""""#??????? | | ??????#########???????##"####??????? | | ???????????????????????#"#?????????? | | ???????????????????????#""?????????? | | ???????????????????????????????????? | | ???????????????????????????????????? | | ???????????????????????????????????? | | ???????????????????????????????????? | | ???????????????????????????????????? | | | | | | | | | | | | | | | +----------------------------------------------------+ Best States ------------- Heat Dissipation 56 Energy Generation 29 Energy Capacity 480 Matter Stores 300 Matter Capacity 300 Sight Range 16 Terrain Scan Range 16 Terrain Scan Density 10 Armor Coverage 450 Resistance: KI 20 Evasion (%) 50 Targeting Accuracy 8 Recoil Reduction 3 Item Schematics ----------------- Lrn. Tractor Beam | -8/Materials | Hacked Huge Storage Unit | -8/Materials | Hacked Hrd. Heavy Armor Plating | -8/Materials | Scanalyzed Graphene Brace | -8/Materials | Scanalyzed Sub. Shrapnel Launcher | -8/Materials | Scanalyzed Arm. Treads | -8/Materials | Scanalyzed Imp. Shield Generator | -8/Materials | Scanalyzed Robot Schematics ------------------ M-13 Machinist | -10/Materials | Hacked Fabricated ------------ Nothing Alien Tech Used ----------------- None Achievements -------------- None Challenges ------------ None Game ------ Seed PointySigixSpoofer Manual? 0 Play Time 00:54:52 Cumulative 462.1 hours Start 2024.04.04 @ 19:04:32 End 2024.04.05 @ 16:24:28 Sessions 2 Manual Loads 0 Difficulty Rogue Special Mode None Game No. 212 Rogue 212 Adventurer 0 Explorer 0 Win Type - Total 11 Types 8/0/1/1/0/0/0/1/0 Lore% 87 Gallery% 92 Achievement% 71 Wizard Run 0 Options --------- Layout 2 ASCII 0 Keyboard 1 Movement Vi Keybinds 0 Fullscreen 2 Font 32/SmallcapsGlow Map View 50x44 Zoom Use 0% Tactical HUD 1 Map Filters NONE Filters NONE Steam 0 RUN: 7aa7a63f-3115-47d8-b9c4-2eef489d031a